Cogmind - Beta 14 @@@ ROGUE MODE // 2024.11.23 @ 11:24:24 Player: Tereza Result: Destroyed by D-53 Grenadier with Mini Grenade Launcher Performance ------------- Evolutions (0) 0 Regions Visited (4) 800 Robots Destroyed (29) 145 Value Destroyed (657) 657 Prototype IDs (2) 40 Alien Tech Used (0) 0 Bonus (0) 0 TOTAL SCORE: 1642 Bonus ------- None Cogmind --------- Core Integrity 0/250 Matter 265/300 Energy 100/100 System Corruption 0% Temperature Cool (10) Movement Rolling (195) Ox7 Location -9/Mines Parts ------- > --- POWER (1) -------- (None) > --- PROPULSION (2) --- Light Treads Armored Wheel > --- UTILITY (2) ------ Huge Storage Unit > --- WEAPON (2) ------- Improved Light Cannon Improved Light Cannon > --- INVENTORY (25) --- Ion Engine Ion Engine Ion Engine Light Nuclear Core Light Treads Light Treads Aluminum Leg Armored Wheel Armored Wheel Armored Wheel Heat Sink Sensor Array Experimental Sensor Array Improved Targeting Computer Improved Targeting Computer Utility Shielding Weapon Shielding Medium Armor Plating Medium Armor Plating Hacking Suite Light Assault Rifle Light Assault Rifle Improved Light Cannon Improved Light Cannon Grenade Launcher Peak State ------------ > --- POWER ------------ Light Angular Momentum Engine > --- PROPULSION ------- Light Treads Armored Wheel > --- UTILITY ---------- Huge Storage Unit Medium Armor Plating > --- WEAPON ----------- Light Assault Rifle Improved Light Cannon > --- INVENTORY -------- Ion Engine Ion Engine Light Nuclear Core Light Treads Light Treads Light Treads Armored Wheel Armored Wheel Armored Wheel Heat Sink Sensor Array Improved Targeting Computer Improved Targeting Computer Utility Shielding Weapon Shielding Medium Armor Plating Medium Armor Plating Medium Armor Plating Hacking Suite Light Assault Rifle Light Assault Rifle Improved Light Cannon Improved Light Cannon Improved Light Cannon Grenade Launcher [Rating: 18] Favorites ----------- Power Light Ion Engine Engine Light Ion Engine Propulsion Light Treads Treads Light Treads Wheel Armored Wheel Utility Huge Storage Unit Device Sensor Array Storage Huge Storage Unit Protection Medium Armor Plating Weapon Improved Light Cannon Ballistic Gun Light Assault Rifle Ballistic Cannon Improved Light Cannon Build | -11 -10 -10 -10 -9 ------- Run | Yrd Mat Min Exi Min Slots Evolved . | . . . . . Power . | . . . . . Propulsion . | . . . . . Utility . | . . . . . Weapon . | . . . . . Parts Attached 21 | 6 11 4 . . Power 2 | 1 . 1 . . Engine 2 | 1 . 1 . . Core . | . . . . . Reactor . | . . . . . Propulsion 8 | 2 5 1 . . Treads 4 | 2 1 1 . . Leg . | . . . . . Wheel 4 | . 4 . . . Hover . | . . . . . Flight . | . . . . . Utility 7 | 1 5 1 . . Device 1 | . 1 . . . Storage 3 | 1 2 . . . Processor . | . . . . . Hackware . | . . . . . Protection 3 | . 2 1 . . Artifact . | . . . . . Weapon 4 | 2 1 1 . . Energy Gun . | . . . . . Energy Cannon . | . . . . . Ballistic Gun 2 | 2 . . . . Ballistic Cannon 2 | . 1 1 . . Launcher . | . . . . . Special Weapon . | . . . . . Impact Weapon . | . . . . . Slashing Weapon . | . . . . . Piercing Weapon . | . . . . . Special Melee Weapon . | . . . . . Unidentified Prototypes . | . . . . . Parts Lost 6 | . 1 4 . 1 Power 1 | . . 1 . . Propulsion 2 | . 1 1 . . Utility 2 | . . 1 . 1 Weapon 1 | . . 1 . . Highest Loss Streak 4 | . 1 4 . 1 To Critical Strikes . | . . . . . Average Slot Usage (%) 93 | . 97 89 85 84 Engine 8 | . 14 4 . . Treads 14 | . 15 14 14 14 Wheel 13 | . 12 14 14 14 Device 2 | . 3 . . . Storage 14 | . 14 14 14 14 Protection 10 | . 7 13 14 13 Ballistic Gun 13 | . 22 5 . . Ballistic Cannon 14 | . 5 22 28 28 Peak Build Rating 18 | 6 13 18 14 14 Average Rating 11 | 4 9 14 14 13 On Entrance 9 | . 6 13 14 14 Naked Turns . | . . . . . Heaviest Build 101 | 11 95 101 95 95 Greatest Support 40 | 40 40 12 12 12 Greatest Overweight (x) 8 | . 8 8 7 7 Average Overweight (x) 5 | . 4 7 7 7 Largest Inventory Capacity 25 | 8 25 25 25 25 Average Capacity 21 | 7 20 25 25 25 Most Carried 25 | 6 25 25 25 25 Average Carried 20 | 4 18 24 25 25 Final Capacity 25 | 8 25 25 25 25 Final Carried 25 | 6 25 25 25 25 Class Distribution -------------------- 100% | Mutant Dominant Class ---------------- Mutant | -10/Materials Mutant | -10/Mines Mutant | -10/Exiles Mutant | -9/Mines Resources | -11 -10 -10 -10 -9 ----------- Run | Yrd Mat Min Exi Min Matter Collected 802 | 193 340 269 . . Remotely . | . . . . . Salvage Created 656 | . 463 193 . . Parts 51 | . 44 7 . . Haulers Intercepted 1 | . 1 . . . Recyclers Shooed 1 | . 1 . . . Parts Field Recycled . | . . . . . Retrieved Matter . | . . . . . Parts Self-Destructed . | . . . . . Prevented . | . . . . . Kills | -11 -10 -10 -10 -9 ------- Run | Yrd Mat Min Exi Min Combat Hostiles Destroyed 25 | . 18 6 . 1 Guns 13 | . 13 . . . Cannons 12 | . 5 6 . 1 Classes Destroyed 6 | . 5 . . 1 Hauler 1 | . 1 . . . Operator 2 | . 2 . . . Watcher 2 | . 2 . . . Swarmer 11 | . 11 . . . Grunt 13 | . 7 6 . . Assembled 1 | . . . . 1 Best Kill Streak 4 | . 4 2 . 1 Combat Bots Only 4 | . 4 2 . 1 Max Kills in Single Turn 1 | . 1 1 . 1 Gunslinging . | . . . . . Exploded . | . . . . . Melee . | . . . . . Uniques/NPCs Destroyed . | . . . . . Combat | -11 -10 -10 -10 -9 -------- Run | Yrd Mat Min Exi Min Hostile Shots Fired 127 | . 65 54 . 8 Missed 33 | . 17 16 . . Damage Taken 1287 | . 417 497 . 373 Core 256 | . 68 87 . 101 Absorbed by Shields . | . . . . . Redirected to Shielding 2 | . 2 . . . Core Remaining (%) 100 | 100 . . . . Volleys Fired 95 | . 63 27 . 5 Largest 2 | . 2 2 . 2 Hottest 78 | . 59 78 . 78 Shots Fired 190 | . 126 54 . 10 Gun 129 | . 105 24 . . Cannon 61 | . 21 30 . 10 Launcher . | . . . . . Special . | . . . . . Kinetic 190 | . 126 54 . 10 Thermal . | . . . . . Explosive . | . . . . . Electromagnetic . | . . . . . Robot Hit Streak 8 | . 8 6 . 3 Robot Miss Streak 6 | . 4 6 . 3 Penetration Max . | . . . . . Secondary Targets 1 | . 1 . . . Max Gunslinging Chain 1 | . 1 . . . Shots Hit Robots 105 | . 72 30 . 3 Core Hits 45 | . 33 11 . 1 Critical Kills . | . . . . . Critical Parts Destroyed 1 | . 1 . . . Critical Strikes 4 | . 3 1 . . Destroy 1 | . 1 . . . Blast 3 | . 2 1 . . Melee Attacks . | . . . . . Impact . | . . . . . Slashing . | . . . . . Piercing . | . . . . . Sneak Attacks . | . . . . . Combat Hostiles . | . . . . . Follow-up Attacks . | . . . . . Damage Inflicted 1469 | . 890 498 . 81 Guns 709 | . 588 121 . . Cannons 760 | . 302 377 . 81 Explosions . | . . . . . Melee . | . . . . . Ramming . | . . . . . Kinetic 1469 | . 890 498 . 81 Thermal . | . . . . . Explosive . | . . . . . Electromagnetic . | . . . . . Impact . | . . . . . Slashing . | . . . . . Piercing . | . . . . . Highest Corruption . | . . . . . Average Corruption . | . . . . . Corruption Purged . | . . . . . Corruption Blocked . | . . . . . Overload Shots . | . . . . . Overflow Damage 30 | . 30 . . . Projectiles 30 | . 30 . . . Explosions . | . . . . . Melee . | . . . . . Knockbacks 12 | . 3 9 . . Impact . | . . . . . Kinetic 10 | . 3 7 . . Secondary 2 | . . 2 . . Self-Inflicted Damage . | . . . . . Shots . | . . . . . Rammed . | . . . . . Targets Rammed . | . . . . . Kicked . | . . . . . Crushed . | . . . . . Highest Temperature 121 | . 54 121 . 24 Average Temperature 34 | . 20 47 . 10 Received Heat Transfer 348 | . 72 276 . . Siege Activations . | . . . . . Robots Corrupted . | . . . . . Combat Hostiles . | . . . . . Parts Fried . | . . . . . Impact Corruptions . | . . . . . Robots Melted . | . . . . . Combat Hostiles . | . . . . . Parts Melted . | . . . . . Heat Transferred . | . . . . . Parts Sabotaged . | . . . . . Parts Stolen . | . . . . . Parts Stripped . | . . . . . Power Chain Reactions . | . . . . . Alert | -11 -10 -10 -10 -9 ------- Run | Yrd Mat Min Exi Min Peak Influence 395 | . 395 220 . 15 Initial 109 | . . 109 . . Average 167 | . 242 84 . 1 Maximum Alert Level 1 | . 1 1 . . Low Security (%) 53 | 100 24 90 . 100 Level 1 46 | . 75 9 . . Level 2 . | . . . . . Level 3 . | . . . . . Level 4 . | . . . . . Level 5 . | . . . . . High Security . | . . . . . Max Security . | . . . . . Squads Dispatched 3 | . 3 . . . Investigation 1 | . 1 . . . Extermination . | . . . . . Reinforcement 2 | . 2 . . . Assault . | . . . . . Garrison . | . . . . . Intercept . | . . . . . Searches Triggered . | . . . . . Construction Impeded . | . . . . . Haulers Reinforced . | . . . . . Active Scanning Responses . | . . . . . Cargo Convoy Interrupts . | . . . . . Stealth | -11 -10 -10 -10 -9 --------- Run | Yrd Mat Min Exi Min Distress Signals 1 | . 1 . . . Communications Jammed . | . . . . . Distress Signals . | . . . . . Times Spotted 50 | . 38 8 . 4 Peak Tracking Total 5 | . 5 2 . 2 Tactical Retreats 8 | . 7 . . 1 Traps | -11 -10 -10 -10 -9 ------- Run | Yrd Mat Min Exi Min Traps Triggered 2 | . 2 . . . Indirectly . | . . . . . Trap Hack Attempts . | . . . . . Triggered . | . . . . . Disarmed . | . . . . . Reprogrammed . | . . . . . Reused . | . . . . . Traps Extracted . | . . . . . Installed . | . . . . . Triggered . | . . . . . Machines | -11 -10 -10 -10 -9 ---------- Run | Yrd Mat Min Exi Min Machines Disabled . | . . . . . Max in Single Turn . | . . . . . Machines Repaired . | . . . . . Machines Dismantled . | . . . . . Machines Sabotaged . | . . . . . Overloaded Fab Kills . | . . . . . Hacking | -11 -10 -10 -10 -9 --------- Run | Yrd Mat Min Exi Min Machines Accessed 3 | . 2 . 1 . Terminals 2 | . 2 . . . Fabricators . | . . . . . Repair Stations . | . . . . . Recycling Units . | . . . . . Scanalyzers . | . . . . . Garrison Access . | . . . . . Total Hacks 11 | . 7 . 4 . Successful 7 | . 3 . 4 . Failed 3 | . 3 . . . Catastrophic . | . . . . . Database Lockouts 1 | . 1 . . . Manual 6 | . 6 . . . Terminals 7 | . 7 . . . Fabricators . | . . . . . Repair Stations . | . . . . . Recycling Units . | . . . . . Scanalyzers . | . . . . . Garrison Access . | . . . . . Terminal Hacks 7 | . 3 . 4 . Record 4 | . . . 4 . Robot Analysis 2 | . 2 . . . Prototype ID Bank 1 | . 1 . . . Fabricator Hacks . | . . . . . Repair Station Hacks . | . . . . . Recycling Unit Hacks . | . . . . . Scanalyzer . | . . . . . Garrison Access Hacks . | . . . . . Unauthorized Hacks . | . . . . . Terminals . | . . . . . Fabricators . | . . . . . Repair Stations . | . . . . . Recycling Units . | . . . . . Scanalyzers . | . . . . . Garrison Access . | . . . . . Data Cores Recovered . | . . . . . Used . | . . . . . Hacking Detections 2 | . 2 . . . Full Trace Events 1 | . 1 . . . Feedback Events . | . . . . . Feedback Blocked . | . . . . . Robot Schematics Acquired . | . . . . . Robots Built . | . . . . . Authchips . | . . . . . Time . | . . . . . Total Robot Build Rating . | . . . . . Part Schematics Acquired . | . . . . . Parts Built . | . . . . . Authchips . | . . . . . Time . | . . . . . Total Part Build Rating . | . . . . . Parts Repaired . | . . . . . Time . | . . . . . Parts Recycled . | . . . . . Recycled Matter . | . . . . . Retrieved Matter . | . . . . . Retrieved Components . | . . . . . Parts Scanalyzed . | . . . . . Part Schematics Acquired . | . . . . . Parts Damaged . | . . . . . Bothacking | -11 -10 -10 -10 -9 ------------ Run | Yrd Mat Min Exi Min Used RIF Installer . | . . . . . Robots Hacked . | . . . . . Non-combat . | . . . . . Combat . | . . . . . Robot Hacks Applied . | . . . . . Relay Couplers Released . | . . . . . Fabnet Peak Effective % . | . . . . . Robots Rewired . | . . . . . Allies Hacked . | . . . . . Hacks Repelled . | . . . . . Allies | -11 -10 -10 -10 -9 -------- Run | Yrd Mat Min Exi Min Total Allies . | . . . . . Largest Group . | . . . . . Highest-Rated Group . | . . . . . Highest-Rated Ally . | . . . . . Total Orders . | . . . . . Ally Attacks . | . . . . . Total Damage . | . . . . . Kills . | . . . . . Allies Corrupted . | . . . . . Allies Melted . | . . . . . Intel | -11 -10 -10 -10 -9 ------- Run | Yrd Mat Min Exi Min Robot Analysis Total 2 | . 2 . . . Derelict Logs Recovered 2 | . . 1 . 1 Drone Launches . | . . . . . Drone Recoveries . | . . . . . Exploration | -11 -10 -10 -10 -9 ------------- Run | Yrd Mat Min Exi Min Turns Passed 2659 | 71 1378 818 246 146 Spaces Moved 1282 | 38 681 368 127 68 Core 4 | 4 . . . . Treads 102 | 34 68 . . . Legs . | . . . . . Wheels 1176 | . 613 368 127 68 Hover . | . . . . . Flight . | . . . . . Fastest Speed 50 | 50 140 195 195 195 Average Speed 175 | 148 159 197 195 195 Slowest Speed 320 | 160 320 210 195 195 Overloaded Moves . | . . . . . Propulsion Burnouts . | . . . . . Robots Hopped . | . . . . . Cave-ins Triggered . | . . . . . Exploration Rate (%) 44 | 4 84 64 48 20 Regions Visited 4 Branch Regions 3 Pre-discovered Areas 3 | . . 1 1 1 Known Exits Taken . | . . . . . Unknown Exits Taken 4 | 1 1 1 1 . Scrap Searched 2 | . . 2 . . Spaces Dug . | . . . . . Terrain Destroyed 4 | . 2 1 . 1 Melee . | . . . . . Projectile 4 | . 2 1 . 1 AOE . | . . . . . Terrain Rammed . | . . . . . Walls Destroyed . | . . . . . Machines Disabled . | . . . . . Actions | -11 -10 -10 -10 -9 --------- Run | Yrd Mat Min Exi Min Total 1534 | 50 872 413 126 73 Wait 71 | . 62 9 . . Move 1278 | 37 680 367 126 68 Hop . | . . . . . Pick Up 47 | 7 36 4 . . Fast Attach 10 | 5 5 . . . Attach 5 | 1 1 3 . . Detach 1 | . 1 . . . Swap 6 | . 5 1 . . Drop 21 | . 19 2 . . Fire 95 | . 63 27 . 5 Melee . | . . . . . Ram . | . . . . . Kick . | . . . . . Crush . | . . . . . Escape Stasis . | . . . . . Rewire . | . . . . . Trap . | . . . . . Miscellaneous . | . . . . . Route ------- -11/Scrapyard -10/Materials (discovered 5 exits: [*Mat x3] / [*Min] / [*Sub]) -10/Mines (discovered 2 exits: [*Mat] / *Exi) -10/Exiles -9/Mines History --------- Turn | Location | Event 19 | -11/Scrapyard | Discovered new exit (range 16) 72 | -11/Scrapyard | Entered Materials 324 | -10/Materials | Build established: Mutant 585 | -10/Materials | Discovered new exit (range 8) 606 | -10/Materials | Central database locked down 662 | -10/Materials | Discovered new exit (range 16) 708 | -10/Materials | Discovered new exit (range 15) 1286 | -10/Materials | Discovered new exit (range 7) 1394 | -10/Materials | Discovered new exit (range 15) 1450 | -10/Materials | Entered Mines 1461 | -10/Mines | Met a Derelict bent on vengeance 1528 | -10/Mines | Deemed a non-threat by the Exiles lab entrance 1528 | -10/Mines | Discovered new exit (range 5) 1720 | -10/Mines | Core integrity fell below 50% 1791 | -10/Mines | Lost 4 parts (1p1n1u1w) 1820 | -10/Mines | Found a damaged Exp. Sensor Array with a note attached 1824 | -10/Mines | Found Prototype Device 1843 | -10/Mines | Discovered new exit (range 10) 2268 | -10/Mines | Entered Exiles 2315 | -10/Exiles | Met 8R-AWN 2350 | -10/Exiles | Met EX-HEX 2426 | -10/Exiles | Met EX-DEC 2438 | -10/Exiles | Learned location of Zion (-6) 2491 | -10/Exiles | Discovered new exit (range 14) 2514 | -10/Exiles | Entered Mines 2570 | -9/Mines | Assembled infested the area 2575 | -9/Mines | Assisted by a Guerilla fighting off Assembled 2660 | -9/Mines | Destroyed by D-53 Grenadier with Mini Grenade Launcher Last Messages --------------- 02570_ ALERT: Infestation in the mines, dispatching Demolisher response squad. 02571_ Acquired derelict log, extracted data. World map confirmed: -6/Zion. 02575_ A derelict emerges from the shadows: "You need to get out of here! I've been tracking a group of Assembled to figure out where they're coming from, and they're closing on this area, come on!" 02593_ 3A-68E(h): "I'll hold them off! Go on ahead or try to find another way!" 02598_ as-17868 knocked back. 02601_ HV Slug penetrates as-17868. 02601_ as-17868 knocked back. 02604_ as-17868 destroyed. 02606_ 3A-68E(h) knocked back. 02606_ 3A-68E(h) destroyed. 02639_ The unstable cave ceiling collapses. 02658_ Med. Armor Plating destroyed. 02658_ as-25814 destroyed. Map ----- +----------------------------------------------------+ | | | | | | | ?????????????????????????????????????? | | ?????????????????????????????????????? | | ?????????????????????????????????????? | | ???#####?????###########?????????????? | | ??## ###?### #?????????????? | | ??# ### ###### #?????????????? | | ??# ##????# #?????????????? | | ???# ##?????# #?????????????? | | ???### #??????# #?????????????? | | ?????## ##??????# #?????????????? | | ??????# ##???????# #?????????????? | | ? ? ## #????????# #?????????????? | | # ?## #????????# #?????????????? | | # ## ##???????# #?????????????? | | # ##?????# #?????????????? | | # ! ####### ##????????????? | | *%! #????????????? | | ##% % ###??????????? | | #?## % ## #### ####???????? | | ???# #### #??# # #???????? | | ?? ????? ???# #??# #???????? | | ???????? ???## ##?## #???????? | | ????????? ????####??# @ #???????? | | ????????????????????# #??????? | | ????????????????????# % #??????? | | ????????????????????## ##??????? | | ????????????????????# #??????? | | ?????????????????#### ##??????? | | ?????????? % =% #???????? | | ???????????????####%!# #???????? | | ??????????????????#= # #??????? | | ????????????????? ?# #?????? | | ???????????????? d #?????? | | ???????????????##### % ##?????? | | ???????????????????### ##??????? | | ????????????????????? ##???????? | | ???????????????????? < #????????? | | ????????????????????# # ????????? | | ????????????????????# # #????????? | | ???????????????????? % #????????? | | ???????????????????? ????????? | | ??????????????????? ????????? | | ?????????????????????# # ????????? | | ????????????????????????# ?????????? | | ?????????????????????????????????????? | | ?????????????????????????????????????? | | ?????????????????????????????????????? | +----------------------------------------------------+ Best States ------------- Heat Dissipation 25 Energy Generation 18 Energy Capacity 150 Matter Stores 300 Matter Capacity 300 Sight Range 16 Robot Scan Range 14 Terrain Scan Density 10 Armor Coverage 225 Core Shielding 20 Evasion (%) 40 Recoil Reduction 2 Item Schematics ----------------- None Robot Schematics ------------------ None Fabricated ------------ Nothing Alien Tech Used ----------------- None Achievements -------------- None Challenges ------------ None Game ------ Seed SupersonicLinearPlating Manual? 0 Play Time 00:13:45 Cumulative 123.1 hours Start 2024.11.23 @ 10:47:09 End 2024.11.23 @ 11:24:24 Sessions 1 Manual Loads 0 Difficulty Rogue Special Mode None Game No. 149 Rogue 149 Adventurer 0 Explorer 0 Win Type - Total 1 Types 1/0/0/0/0/0/0/0/0 Lore% 65 Gallery% 55 Achievement% 46 Wizard Run 0 Options --------- Layout 1 ASCII 0 Keyboard 1 Movement Numpad Keybinds 0 Fullscreen 1 Font 24/Smallcaps Map View 50x35 Zoom Use 0% Tactical HUD 1 Map Filters NONE Filters NONE Steam 1 RUN: 66053f00-c60c-4f9f-9c41-238a975a70ee